[Event "Early-Titled-Tuesday-Blitz-September-05-2023"]
[Site "Chess.com"]
[Date "2023.09.05"]
[Round "5"]
[White "CheckThis4"]
[Black "Eloist"]
[Result "1-0"]
[WhiteElo "2664"]
[BlackElo "2445"]
[TimeControl "180+1"]
[EndTime "8:54:46 PDT"]
[Termination "CheckThis4 won on time"]

1. d4 {[%clk 0:02:24.5]} 1... e6 {[%clk 0:02:59.9]} 2. e4 {[%clk 0:02:24.1]}
2... d5 {[%clk 0:02:59.3]} 3. Nc3 {[%clk 0:02:24.4]} 3... Nf6 {[%clk 0:02:59.3]}
4. Bg5 {[%clk 0:02:23.1]} 4... dxe4 {[%clk 0:02:59.1]} 5. Nxe4 {[%clk
0:02:22.8]} 5... Be7 {[%clk 0:02:59.5]} 6. Bxf6 {[%clk 0:02:22.1]} 6... gxf6
{[%clk 0:02:59.4]} 7. Nf3 {[%clk 0:02:21.6]} 7... f5 {[%clk 0:02:59.6]} 8. Nc3
{[%clk 0:02:20.5]} 8... a6 {[%clk 0:02:57]} 9. Qd2 {[%clk 0:02:17.7]} 9... b5
{[%clk 0:02:55.1]} 10. O-O-O {[%clk 0:02:08.9]} 10... b4 {[%clk 0:02:52.1]} 11.
Na4 {[%clk 0:02:02]} 11... Bb7 {[%clk 0:02:51.4]} 12. Kb1 {[%clk 0:02:02]} 12...
Qd6 {[%clk 0:02:46.1]} 13. Nc5 {[%clk 0:01:58.2]} 13... Bd5 {[%clk 0:02:45.5]}
14. Qe3 {[%clk 0:01:50.6]} 14... Nd7 {[%clk 0:02:44.8]} 15. Nxd7 {[%clk
0:01:44.9]} 15... Qxd7 {[%clk 0:02:44.7]} 16. Ne5 {[%clk 0:01:45]} 16... Qd6
{[%clk 0:02:42.8]} 17. Bc4 {[%clk 0:01:41.4]} 17... Bf6 {[%clk 0:02:37.1]} 18.
Bb3 {[%clk 0:01:37]} 18... Bxb3 {[%clk 0:02:32.7]} 19. axb3 {[%clk 0:01:34.2]}
19... Qd5 {[%clk 0:02:24]} 20. Rhe1 {[%clk 0:01:31.4]} 20... a5 {[%clk
0:02:06.1]} 21. g4 {[%clk 0:01:26.5]} 21... fxg4 {[%clk 0:01:56.9]} 22. Nxg4
{[%clk 0:01:13.2]} 22... Bg5 {[%clk 0:01:50.2]} 23. Qg3 {[%clk 0:01:07.5]} 23...
Qd6 {[%clk 0:01:42.4]} 24. Re5 {[%clk 0:00:56.6]} 24... f6 {[%clk 0:01:32]} 25.
Qf3 {[%clk 0:00:48.1]} 25... O-O {[%clk 0:01:12.1]} 26. Rc5 {[%clk 0:00:38.1]}
26... e5 {[%clk 0:01:08.8]} 27. h4 {[%clk 0:00:35.5]} 27... Bf4 {[%clk
0:01:08.2]} 28. Ne3 {[%clk 0:00:26.4]} 28... Bxe3 {[%clk 0:01:02.6]} 29. fxe3
{[%clk 0:00:27]} 29... Kh8 {[%clk 0:00:54.4]} 30. Rc6 {[%clk 0:00:26.9]} 30...
Qe7 {[%clk 0:00:50.8]} 31. h5 {[%clk 0:00:23.5]} 31... exd4 {[%clk 0:00:46.7]}
32. exd4 {[%clk 0:00:23]} 32... Rae8 {[%clk 0:00:43.3]} 33. Rf1 {[%clk
0:00:20.5]} 33... f5 {[%clk 0:00:34.2]} 34. h6 {[%clk 0:00:19.1]} 34... Qe4
{[%clk 0:00:31.9]} 35. Rxc7 {[%clk 0:00:16.8]} 35... Qxd4 {[%clk 0:00:22.5]} 36.
Qg3 {[%clk 0:00:13.7]} 36... Rg8 {[%clk 0:00:21]} 37. Qf3 {[%clk 0:00:11.3]}
37... Ref8 {[%clk 0:00:15.6]} 38. Ka2 {[%clk 0:00:11.2]} 38... f4 {[%clk
0:00:15.6]} 39. Rd1 {[%clk 0:00:10.9]} 39... Qe3 {[%clk 0:00:15.4]} 40. Qc6
{[%clk 0:00:09.4]} 40... Rg6 {[%clk 0:00:13.1]} 41. Qb7 {[%clk 0:00:08.6]} 41...
Rxh6 {[%clk 0:00:04.5]} 42. Rdd7 {[%clk 0:00:09.2]} 42... Qh3 {[%clk 0:00:02.8]}
43. Rc8 {[%clk 0:00:08.4]} 1-0

[Event "Early-Titled-Tuesday-Blitz-September-05-2023"]
[Site "Chess.com"]
[Date "2023.09.05"]
[Round "5"]
[White "Chessdude1987"]
[Black "DarZay"]
[Result "1-0"]
[WhiteElo "2430"]
[BlackElo "2265"]
[TimeControl "180+1"]
[EndTime "8:54:46 PDT"]
[Termination "Chessdude1987 won by resignation"]

1. e4 {[%clk 0:03:00.9]} 1... c5 {[%clk 0:02:55.6]} 2. Nf3 {[%clk 0:03:01.3]}
2... Nc6 {[%clk 0:02:54.3]} 3. Bb5 {[%clk 0:03:01.1]} 3... g6 {[%clk 0:02:53.1]}
4. Bxc6 {[%clk 0:03:00.7]} 4... dxc6 {[%clk 0:02:52.3]} 5. Qe2 {[%clk
0:02:56.6]} 5... Bg7 {[%clk 0:02:51]} 6. d3 {[%clk 0:02:53.9]} 6... Nf6 {[%clk
0:02:49.2]} 7. Nc3 {[%clk 0:02:53.1]} 7... O-O {[%clk 0:02:48.8]} 8. Be3 {[%clk
0:02:52.6]} 8... b6 {[%clk 0:02:47.6]} 9. O-O-O {[%clk 0:02:48.1]} 9... Bb7
{[%clk 0:02:37.7]} 10. h4 {[%clk 0:02:47.1]} 10... Ng4 {[%clk 0:02:36.3]} 11.
Bd2 {[%clk 0:02:30.8]} 11... h5 {[%clk 0:02:35.1]} 12. Ng5 {[%clk 0:02:28.1]}
12... Qd6 {[%clk 0:02:23.3]} 13. f3 {[%clk 0:02:24.9]} 13... Ne5 {[%clk
0:02:21.8]} 14. g4 {[%clk 0:02:24.2]} 14... b5 {[%clk 0:02:11.6]} 15. gxh5
{[%clk 0:02:23.6]} 15... gxh5 {[%clk 0:02:11.6]} 16. f4 {[%clk 0:02:20.2]} 16...
Ng4 {[%clk 0:02:09.7]} 17. e5 {[%clk 0:02:20.3]} 17... Qc7 {[%clk 0:02:06.9]}
18. Rdg1 {[%clk 0:02:09.3]} 18... Bc8 {[%clk 0:01:59.7]} 19. e6 {[%clk
0:02:06.1]} 19... fxe6 {[%clk 0:01:51.3]} 20. Rxg4 {[%clk 0:02:04.9]} 20... hxg4
{[%clk 0:01:50.9]} 21. Qe4 {[%clk 0:01:59.6]} 21... Rf5 {[%clk 0:01:50.3]} 22.
Nxe6 {[%clk 0:01:59.7]} 22... Bxe6 {[%clk 0:01:50]} 23. Qxe6+ {[%clk 0:01:59.5]}
23... Rf7 {[%clk 0:01:50.1]} 24. Qxg4 {[%clk 0:01:52.1]} 24... Qc8 {[%clk
0:01:45.6]} 25. Qg2 {[%clk 0:01:48.2]} 25... Rf6 {[%clk 0:01:33.8]} 26. Rg1
{[%clk 0:01:47.4]} 26... Rf7 {[%clk 0:01:24.6]} 27. Ne4 {[%clk 0:01:37.8]} 27...
Qf5 {[%clk 0:01:12.2]} 28. Ng5 {[%clk 0:01:24.6]} 28... Qf6 {[%clk 0:00:45.5]}
29. Nxf7 {[%clk 0:01:11.6]} 29... Qxb2+ {[%clk 0:00:41.1]} 30. Kd1 {[%clk
0:01:11.8]} 30... Kxf7 {[%clk 0:00:40]} 31. Qg6+ {[%clk 0:01:06.3]} 31... Kf8
{[%clk 0:00:37.9]} 32. h5 {[%clk 0:00:53.6]} 32... Qf6 {[%clk 0:00:26.2]} 33.
Qg4 {[%clk 0:00:38.6]} 33... Kf7 {[%clk 0:00:23.1]} 34. f5 {[%clk 0:00:35.3]}
34... Qa1+ {[%clk 0:00:19.5]} 35. Ke2 {[%clk 0:00:35]} 35... Qe5+ {[%clk
0:00:19.4]} 36. Kf1 {[%clk 0:00:27.3]} 36... Rh8 {[%clk 0:00:12]} 37. Qg6+
{[%clk 0:00:23.3]} 37... Kf8 {[%clk 0:00:12]} 38. h6 {[%clk 0:00:23.1]} 38...
Bf6 {[%clk 0:00:07]} 39. h7 {[%clk 0:00:21.7]} 39... Qa1+ {[%clk 0:00:05.5]} 40.
Ke2 {[%clk 0:00:21.2]} 40... Qe5+ {[%clk 0:00:05.3]} 41. Kf3 {[%clk 0:00:20.7]}
41... Qd5+ {[%clk 0:00:04.8]} 42. Ke2 {[%clk 0:00:16.8]} 42... Qf7 {[%clk
0:00:04.8]} 43. Bh6+ {[%clk 0:00:15.3]} 43... Ke8 {[%clk 0:00:03.4]} 44. Qg8+
{[%clk 0:00:14.4]} 44... Kd7 {[%clk 0:00:03.9]} 45. Qxf7 {[%clk 0:00:13.6]} 1-0

[Event "Early-Titled-Tuesday-Blitz-September-05-2023"]
[Site "Chess.com"]
[Date "2023.09.05"]
[Round "5"]
[White "Srisshhhtea"]
[Black "KVAIDAN"]
[Result "0-1"]
[WhiteElo "2397"]
[BlackElo "2230"]
[TimeControl "180+1"]
[EndTime "8:54:46 PDT"]
[Termination "KVAIDAN won on time"]

1. e4 {[%clk 0:03:00.9]} 1... e5 {[%clk 0:03:00.1]} 2. Nf3 {[%clk 0:03:00.2]}
2... d5 {[%clk 0:03:00.7]} 3. exd5 {[%clk 0:02:56.5]} 3... e4 {[%clk 0:03:01.2]}
4. Ne5 {[%clk 0:02:52.4]} 4... Qxd5 {[%clk 0:02:54.8]} 5. d4 {[%clk 0:02:52.4]}
5... exd3 {[%clk 0:02:53.4]} 6. Nxd3 {[%clk 0:02:52.2]} 6... Nc6 {[%clk
0:02:53.5]} 7. Nc3 {[%clk 0:02:51.9]} 7... Bb4 {[%clk 0:02:53.4]} 8. Bd2 {[%clk
0:02:27.8]} 8... Qe6+ {[%clk 0:02:53]} 9. Be2 {[%clk 0:02:27.1]} 9... Nd4 {[%clk
0:02:49.9]} 10. Nxb4 {[%clk 0:02:22.5]} 10... Nf6 {[%clk 0:02:48.2]} 11. O-O
{[%clk 0:02:20.5]} 11... O-O {[%clk 0:02:47.5]} 12. Be3 {[%clk 0:02:18.4]} 12...
Nf5 {[%clk 0:02:44.2]} 13. Bg5 {[%clk 0:02:08.3]} 13... c6 {[%clk 0:02:37.4]}
14. Bf3 {[%clk 0:02:06.7]} 14... a5 {[%clk 0:02:31.5]} 15. Re1 {[%clk
0:02:01.8]} 15... Qc4 {[%clk 0:02:30]} 16. Nd3 {[%clk 0:01:58.3]} 16... Nd7
{[%clk 0:02:23.5]} 17. Qd2 {[%clk 0:01:51.1]} 17... h6 {[%clk 0:02:07.8]} 18.
Bf4 {[%clk 0:01:41.8]} 18... Nf6 {[%clk 0:01:56.5]} 19. Ne5 {[%clk 0:01:37]}
19... Qb4 {[%clk 0:01:52.2]} 20. Ne4 {[%clk 0:01:32.9]} 20... Nd5 {[%clk
0:01:45.6]} 21. Qxb4 {[%clk 0:01:30.9]} 21... axb4 {[%clk 0:01:44.1]} 22. Bg3
{[%clk 0:01:29]} 22... Nd4 {[%clk 0:01:43.9]} 23. Bd1 {[%clk 0:01:23.7]} 23...
f6 {[%clk 0:01:38.1]} 24. Nd3 {[%clk 0:01:22.2]} 24... Re8 {[%clk 0:01:25]} 25.
Nd6 {[%clk 0:01:19.4]} 25... Rxe1+ {[%clk 0:01:23.8]} 26. Nxe1 {[%clk
0:01:20.3]} 26... Bf5 {[%clk 0:01:21.2]} 27. Nxf5 {[%clk 0:01:13]} 27... Nxf5
{[%clk 0:01:21.1]} 28. Bf3 {[%clk 0:01:12.9]} 28... Nb6 {[%clk 0:01:18.2]} 29.
c3 {[%clk 0:01:05.3]} 29... b3 {[%clk 0:01:14.3]} 30. a3 {[%clk 0:01:03.1]}
30... Nc4 {[%clk 0:01:14.1]} 31. Nd3 {[%clk 0:00:57.9]} 31... Rd8 {[%clk
0:01:09.5]} 32. Nc5 {[%clk 0:00:58.1]} 32... Nxb2 {[%clk 0:01:01.9]} 33. Rb1
{[%clk 0:00:53.9]} 33... Nc4 {[%clk 0:00:54.3]} 34. Nxb7 {[%clk 0:00:51.3]}
34... Rd2 {[%clk 0:00:46.3]} 35. Rxb3 {[%clk 0:00:45.9]} 35... Ra2 {[%clk
0:00:45.5]} 36. h4 {[%clk 0:00:40.9]} 36... Nd2 {[%clk 0:00:39.8]} 37. Rb6
{[%clk 0:00:39.9]} 37... Nxf3+ {[%clk 0:00:36.9]} 38. gxf3 {[%clk 0:00:40.8]}
38... Rxa3 {[%clk 0:00:37.4]} 39. Rxc6 {[%clk 0:00:37.3]} 39... Ne7 {[%clk
0:00:37.2]} 40. Rc7 {[%clk 0:00:36.2]} 40... Nd5 {[%clk 0:00:37.3]} 41. Rc8+
{[%clk 0:00:36.4]} 41... Kf7 {[%clk 0:00:37.4]} 42. c4 {[%clk 0:00:36.8]} 42...
Rc3 {[%clk 0:00:35.4]} 43. Nd6+ {[%clk 0:00:35.1]} 43... Kg6 {[%clk 0:00:35.6]}
44. cxd5 {[%clk 0:00:36]} 44... Rd3 {[%clk 0:00:35.3]} 45. Rc7 {[%clk
0:00:32.4]} 45... Rxd5 {[%clk 0:00:34.1]} 46. Ne8 {[%clk 0:00:33]} 46... Kh5
{[%clk 0:00:33.3]} 0-1

[Event "Early-Titled-Tuesday-Blitz-September-05-2023"]
[Site "Chess.com"]
[Date "2023.09.05"]
[Round "5"]
[White "mishanick"]
[Black "platy3"]
[Result "1-0"]
[WhiteElo "3067"]
[BlackElo "2922"]
[TimeControl "180+1"]
[EndTime "8:54:50 PDT"]
[Termination "mishanick won by resignation"]

1. d4 {[%clk 0:03:00.9]} 1... Nf6 {[%clk 0:02:59.5]} 2. c4 {[%clk 0:03:01.3]}
2... e6 {[%clk 0:02:59.3]} 3. Nc3 {[%clk 0:03:01.7]} 3... d5 {[%clk 0:02:57.4]}
4. cxd5 {[%clk 0:03:01.6]} 4... exd5 {[%clk 0:02:58.3]} 5. Bf4 {[%clk
0:03:01.9]} 5... Bb4 {[%clk 0:02:59.1]} 6. e3 {[%clk 0:02:59.1]} 6... O-O {[%clk
0:02:57.9]} 7. Bd3 {[%clk 0:02:58.5]} 7... c5 {[%clk 0:02:58]} 8. Ne2 {[%clk
0:02:56.9]} 8... Nc6 {[%clk 0:02:57.9]} 9. dxc5 {[%clk 0:02:56.6]} 9... Bxc5
{[%clk 0:02:57.6]} 10. O-O {[%clk 0:02:56.3]} 10... d4 {[%clk 0:02:45.9]} 11.
exd4 {[%clk 0:02:38.1]} 11... Nxd4 {[%clk 0:02:45.9]} 12. Nxd4 {[%clk
0:02:33.2]} 12... Qxd4 {[%clk 0:02:40.7]} 13. Be3 {[%clk 0:02:28.8]} 13... Qe5
{[%clk 0:02:40.2]} 14. Bxc5 {[%clk 0:02:25.7]} 14... Qxc5 {[%clk 0:02:39.6]} 15.
Qf3 {[%clk 0:02:22.3]} 15... Rd8 {[%clk 0:02:06.6]} 16. h3 {[%clk 0:02:20.5]}
16... Be6 {[%clk 0:02:03.6]} 17. Rad1 {[%clk 0:02:21.1]} 17... Rd7 {[%clk
0:01:58.2]} 18. Be4 {[%clk 0:02:12.1]} 18... Nxe4 {[%clk 0:01:44.1]} 19. Qxe4
{[%clk 0:02:07.2]} 19... Rad8 {[%clk 0:01:41.9]} 20. Qxb7 {[%clk 0:01:49]} 20...
Rxd1 {[%clk 0:01:32.4]} 21. Rxd1 {[%clk 0:01:47.9]} 21... Rxd1+ {[%clk
0:01:21.5]} 22. Nxd1 {[%clk 0:01:48.8]} 22... h6 {[%clk 0:00:52.9]} 23. Nc3
{[%clk 0:01:45.4]} 23... a5 {[%clk 0:00:53.2]} 24. a3 {[%clk 0:01:41.6]} 24...
Kh7 {[%clk 0:00:50.6]} 25. Qe4+ {[%clk 0:01:41.6]} 25... g6 {[%clk 0:00:50.6]}
26. Qe3 {[%clk 0:01:35.4]} 26... Qc4 {[%clk 0:00:48.7]} 27. f3 {[%clk
0:01:32.8]} 27... Qb3 {[%clk 0:00:46.1]} 28. Qd2 {[%clk 0:01:33.1]} 28... Qb6+
{[%clk 0:00:37.3]} 29. Kh2 {[%clk 0:01:33.2]} 29... Qb8+ {[%clk 0:00:37.4]} 30.
Kh1 {[%clk 0:01:33.6]} 30... Qe5 {[%clk 0:00:36.4]} 31. Ne4 {[%clk 0:01:30.2]}
31... g5 {[%clk 0:00:28.6]} 32. Qc3 {[%clk 0:01:18.1]} 32... Qf4 {[%clk
0:00:28.8]} 33. Kg1 {[%clk 0:01:10]} 33... Kg6 {[%clk 0:00:28.5]} 34. Kf2 {[%clk
0:01:09.4]} 34... Qf5 {[%clk 0:00:25.9]} 35. Qc5 {[%clk 0:01:01.4]} 35... Bd5
{[%clk 0:00:20]} 36. Qd6+ {[%clk 0:00:55.7]} 36... Kg7 {[%clk 0:00:20.2]} 37. g4
{[%clk 0:00:55.1]} 37... Qe6 {[%clk 0:00:11.4]} 38. Qxe6 {[%clk 0:00:55.4]}
38... Bxe6 {[%clk 0:00:12]} 39. b4 {[%clk 0:00:54.9]} 39... axb4 {[%clk
0:00:11.4]} 40. axb4 {[%clk 0:00:55.8]} 40... Kg6 {[%clk 0:00:11.4]} 41. Nd6
{[%clk 0:00:55.2]} 41... Kf6 {[%clk 0:00:10.4]} 42. b5 {[%clk 0:00:47]} 42...
Ke7 {[%clk 0:00:10.6]} 43. Nf5+ {[%clk 0:00:42]} 43... Kd7 {[%clk 0:00:03.1]}
44. Nxh6 {[%clk 0:00:26.3]} 44... Bc4 {[%clk 0:00:03.5]} 45. b6 {[%clk
0:00:22.9]} 45... Kc6 {[%clk 0:00:02.9]} 46. Ke3 {[%clk 0:00:23.5]} 46... f6
{[%clk 0:00:02.2]} 47. Kd4 {[%clk 0:00:21.7]} 47... Bf1 {[%clk 0:00:02.4]} 48.
Ke4 {[%clk 0:00:21.7]} 48... Bxh3 {[%clk 0:00:02.4]} 49. Ng8 {[%clk 0:00:21.8]}
1-0

[Event "Early-Titled-Tuesday-Blitz-September-05-2023"]
[Site "Chess.com"]
[Date "2023.09.05"]
[Round "5"]
[White "Herman-NY"]
[Black "Aygehovit1992"]
[Result "0-1"]
[WhiteElo "2484"]
[BlackElo "2704"]
[TimeControl "180+1"]
[EndTime "8:54:52 PDT"]
[Termination "Aygehovit1992 won by resignation"]

1. e4 {[%clk 0:03:00.9]} 1... c5 {[%clk 0:02:59.1]} 2. Nf3 {[%clk 0:03:00.9]}
2... d6 {[%clk 0:02:59.1]} 3. d4 {[%clk 0:03:01.6]} 3... cxd4 {[%clk 0:02:59.8]}
4. Nxd4 {[%clk 0:03:02.5]} 4... Nf6 {[%clk 0:03:00.3]} 5. Nc3 {[%clk 0:03:03.2]}
5... g6 {[%clk 0:03:00.9]} 6. Be3 {[%clk 0:03:02.9]} 6... Nc6 {[%clk 0:03:01.4]}
7. f3 {[%clk 0:02:57.6]} 7... h5 {[%clk 0:03:01.1]} 8. Nb3 {[%clk 0:02:56.2]}
8... a5 {[%clk 0:02:56.8]} 9. a4 {[%clk 0:02:56.2]} 9... h4 {[%clk 0:02:50.1]}
10. h3 {[%clk 0:02:39]} 10... Bh6 {[%clk 0:02:24.9]} 11. Bxh6 {[%clk 0:02:30.1]}
11... Rxh6 {[%clk 0:02:25.8]} 12. Qd2 {[%clk 0:02:30.7]} 12... Rh5 {[%clk
0:02:26.3]} 13. Bb5 {[%clk 0:02:17.5]} 13... Bd7 {[%clk 0:02:17.9]} 14. O-O-O
{[%clk 0:01:53.8]} 14... Nb4 {[%clk 0:02:11.3]} 15. Kb1 {[%clk 0:01:13.3]} 15...
Rc8 {[%clk 0:02:08.7]} 16. Rc1 {[%clk 0:00:53.3]} 16... b6 {[%clk 0:01:34.7]}
17. Rhd1 {[%clk 0:00:48.6]} 17... Kf8 {[%clk 0:01:30.4]} 18. Qe3 {[%clk
0:00:28.5]} 18... Qc7 {[%clk 0:00:51.5]} 19. Rd2 {[%clk 0:00:26.8]} 19... Bxb5
{[%clk 0:00:43.3]} 20. Nxb5 {[%clk 0:00:26.3]} 20... Qc4 {[%clk 0:00:43.5]} 21.
Na3 {[%clk 0:00:26.2]} 21... Qc6 {[%clk 0:00:34.6]} 22. Nb5 {[%clk 0:00:20.7]}
22... Nd7 {[%clk 0:00:33.3]} 23. c3 {[%clk 0:00:10]} 23... Na6 {[%clk
0:00:23.9]} 24. Na7 {[%clk 0:00:09.3]} 24... Qxa4 {[%clk 0:00:24.2]} 25. Nxc8
{[%clk 0:00:09.6]} 25... Qxb3 {[%clk 0:00:22.5]} 26. Qd4 {[%clk 0:00:07.8]}
26... Nac5 {[%clk 0:00:17.6]} 27. Rcd1 {[%clk 0:00:05.2]} 27... a4 {[%clk
0:00:08]} 28. Qb4 {[%clk 0:00:04.8]} 28... Qxb4 {[%clk 0:00:06.5]} 29. cxb4
{[%clk 0:00:05.7]} 29... Nb3 {[%clk 0:00:07.3]} 30. Rc2 {[%clk 0:00:05.7]} 30...
Rb5 {[%clk 0:00:07.2]} 31. Na7 {[%clk 0:00:05.3]} 31... Rxb4 {[%clk 0:00:07.2]}
32. Rc7 {[%clk 0:00:05.1]} 32... Ndc5 {[%clk 0:00:06.8]} 33. Nc6 {[%clk
0:00:03.3]} 33... Rb5 {[%clk 0:00:07.2]} 34. Nxe7 {[%clk 0:00:03.7]} 34... a3
{[%clk 0:00:07.8]} 35. Rxd6 {[%clk 0:00:03.5]} 35... axb2 {[%clk 0:00:04.1]} 36.
Rd8+ {[%clk 0:00:03.8]} 36... Kg7 {[%clk 0:00:04]} 37. Nd5 {[%clk 0:00:04.6]}
37... Na5 {[%clk 0:00:02.3]} 38. Nc3 {[%clk 0:00:04.5]} 38... Rb3 {[%clk
0:00:02.4]} 39. Nd1 {[%clk 0:00:03.9]} 39... Nc4 {[%clk 0:00:02.6]} 40. Nxb2
{[%clk 0:00:04.8]} 40... Rxb2+ {[%clk 0:00:02.5]} 41. Ka1 {[%clk 0:00:04.5]}
41... Rxg2 {[%clk 0:00:03.4]} 42. Rd3 {[%clk 0:00:03.2]} 42... Nxd3 {[%clk
0:00:03.4]} 43. Rxc4 {[%clk 0:00:03.6]} 43... Nf4 {[%clk 0:00:03.1]} 44. Rc6
{[%clk 0:00:04.3]} 44... Nxh3 {[%clk 0:00:03.5]} 45. Rxb6 {[%clk 0:00:05.2]}
45... Nf4 {[%clk 0:00:04.2]} 46. Rb1 {[%clk 0:00:05.6]} 46... h3 {[%clk
0:00:05.1]} 47. Rh1 {[%clk 0:00:06.3]} 47... h2 {[%clk 0:00:05.9]} 0-1

[Event "Early-Titled-Tuesday-Blitz-September-05-2023"]
[Site "Chess.com"]
[Date "2023.09.05"]
[Round "5"]
[White "isaak2009"]
[Black "kasun_bole"]
[Result "0-1"]
[WhiteElo "2544"]
[BlackElo "2409"]
[TimeControl "180+1"]
[EndTime "8:54:52 PDT"]
[Termination "kasun_bole won on time"]

1. d4 {[%clk 0:02:55.3]} 1... Nf6 {[%clk 0:02:59.3]} 2. c4 {[%clk 0:02:55.8]}
2... e6 {[%clk 0:02:59.3]} 3. Nc3 {[%clk 0:02:56.3]} 3... Bb4 {[%clk 0:02:59]}
4. e3 {[%clk 0:02:56.9]} 4... O-O {[%clk 0:02:58.6]} 5. Bd3 {[%clk 0:02:57.3]}
5... d6 {[%clk 0:02:58.3]} 6. Ne2 {[%clk 0:02:56.1]} 6... Nbd7 {[%clk
0:02:56.8]} 7. a3 {[%clk 0:02:54.9]} 7... Bxc3+ {[%clk 0:02:57.1]} 8. Nxc3
{[%clk 0:02:55.8]} 8... Qe7 {[%clk 0:02:57.5]} 9. O-O {[%clk 0:02:55.3]} 9... e5
{[%clk 0:02:57]} 10. Qc2 {[%clk 0:02:55.9]} 10... b6 {[%clk 0:02:49.2]} 11. b4
{[%clk 0:02:56.1]} 11... a5 {[%clk 0:02:48.5]} 12. Bb2 {[%clk 0:02:54.6]} 12...
Bb7 {[%clk 0:02:48.3]} 13. Bf5 {[%clk 0:02:52.3]} 13... Rfe8 {[%clk 0:02:38.4]}
14. d5 {[%clk 0:02:45.3]} 14... g6 {[%clk 0:02:32.8]} 15. Bh3 {[%clk 0:02:44.2]}
15... Nh5 {[%clk 0:02:26.3]} 16. Nb5 {[%clk 0:02:37.5]} 16... Ndf6 {[%clk
0:02:12.9]} 17. g3 {[%clk 0:02:32]} 17... Bc8 {[%clk 0:02:01.6]} 18. Bg2 {[%clk
0:02:30.7]} 18... Ng7 {[%clk 0:01:52.6]} 19. e4 {[%clk 0:02:29.5]} 19... Ng4
{[%clk 0:01:45.4]} 20. h3 {[%clk 0:01:23]} 20... Nh6 {[%clk 0:01:45.4]} 21. Bc1
{[%clk 0:01:20.7]} 21... g5 {[%clk 0:01:42.6]} 22. Nxc7 {[%clk 0:01:15.6]} 22...
Qxc7 {[%clk 0:01:37.1]} 23. Bxg5 {[%clk 0:01:14.1]} 23... Nhf5 {[%clk
0:01:22.6]} 24. exf5 {[%clk 0:01:12.7]} 24... Bxf5 {[%clk 0:01:23.5]} 25. Qd2
{[%clk 0:01:07.6]} 25... axb4 {[%clk 0:01:07.3]} 26. axb4 {[%clk 0:00:52.3]}
26... Qxc4 {[%clk 0:00:59.8]} 27. Rxa8 {[%clk 0:00:51.2]} 27... Rxa8 {[%clk
0:00:59.2]} 28. Bf6 {[%clk 0:00:52]} 28... Bg6 {[%clk 0:00:59.4]} 29. Qh6 {[%clk
0:00:45.3]} 29... Nf5 {[%clk 0:00:52.4]} 30. Qg5 {[%clk 0:00:45]} 30... h6
{[%clk 0:00:49.2]} 31. Qd2 {[%clk 0:00:15.2]} 31... Kh7 {[%clk 0:00:48.5]} 32.
h4 {[%clk 0:00:04.6]} 32... Ra2 {[%clk 0:00:45.7]} 33. Qe1 {[%clk 0:00:03.9]}
33... Qe2 {[%clk 0:00:41.1]} 34. Qxe2 {[%clk 0:00:03.6]} 34... Rxe2 {[%clk
0:00:42]} 35. Bh3 {[%clk 0:00:03]} 35... Nd4 {[%clk 0:00:41.8]} 36. Be7 {[%clk
0:00:03.4]} 36... Bf5 {[%clk 0:00:37.2]} 37. Bg2 {[%clk 0:00:03.5]} 37... Nb5
{[%clk 0:00:32.2]} 38. Bd8 {[%clk 0:00:02.6]} 38... Rb2 {[%clk 0:00:27.5]} 39.
Bxb6 {[%clk 0:00:03.2]} 39... Rxb4 {[%clk 0:00:27.6]} 40. Bd8 {[%clk 0:00:03.8]}
40... Nd4 {[%clk 0:00:26.1]} 41. Kh2 {[%clk 0:00:03.1]} 41... Rb7 {[%clk
0:00:23.7]} 42. Ba5 {[%clk 0:00:02.1]} 42... h5 {[%clk 0:00:19.1]} 43. Rc1
{[%clk 0:00:01.4]} 43... Nb3 {[%clk 0:00:18]} 44. Rc7 {[%clk 0:00:01]} 44...
Nxa5 {[%clk 0:00:17.2]} 45. Rc3 {[%clk 0:00:01.4]} 45... Nb3 {[%clk 0:00:16.6]}
0-1

[Event "Early-Titled-Tuesday-Blitz-September-05-2023"]
[Site "Chess.com"]
[Date "2023.09.05"]
[Round "5"]
[White "Casper"]
[Black "Ginger_GM"]
[Result "1-0"]
[WhiteElo "2435"]
[BlackElo "2599"]
[TimeControl "180+1"]
[EndTime "8:54:54 PDT"]
[Termination "Casper won on time"]

1. e4 {[%clk 0:02:54.8]} 1... c5 {[%clk 0:02:58.5]} 2. h4 {[%clk 0:02:51.2]}
2... Nc6 {[%clk 0:02:56.8]} 3. Nf3 {[%clk 0:02:50.6]} 3... e6 {[%clk 0:02:55.4]}
4. Nc3 {[%clk 0:02:49.5]} 4... d5 {[%clk 0:02:54.4]} 5. exd5 {[%clk 0:02:49.3]}
5... exd5 {[%clk 0:02:54.2]} 6. d4 {[%clk 0:02:50.2]} 6... Nf6 {[%clk 0:02:53]}
7. Bg5 {[%clk 0:02:47.5]} 7... Bg4 {[%clk 0:02:50.1]} 8. Bb5 {[%clk 0:02:40.7]}
8... Be7 {[%clk 0:02:40.8]} 9. Qd3 {[%clk 0:02:19.8]} 9... O-O {[%clk
0:02:33.2]} 10. Bxc6 {[%clk 0:02:05.9]} 10... bxc6 {[%clk 0:02:32.5]} 11. Ne5
{[%clk 0:02:06.8]} 11... cxd4 {[%clk 0:02:01.5]} 12. Qxd4 {[%clk 0:01:44.8]}
12... c5 {[%clk 0:01:49.6]} 13. Qd3 {[%clk 0:01:35.9]} 13... Be6 {[%clk
0:01:36.2]} 14. Nc6 {[%clk 0:01:23.6]} 14... Qd6 {[%clk 0:01:30.9]} 15. Nxe7+
{[%clk 0:01:22.6]} 15... Qxe7 {[%clk 0:01:31]} 16. O-O-O {[%clk 0:01:22.8]}
16... Rab8 {[%clk 0:01:14.1]} 17. Rhe1 {[%clk 0:01:12.1]} 17... Qb7 {[%clk
0:01:04.1]} 18. b3 {[%clk 0:00:55.8]} 18... c4 {[%clk 0:00:44.8]} 19. Qg3 {[%clk
0:00:33.4]} 19... Nh5 {[%clk 0:00:25.3]} 20. Qf3 {[%clk 0:00:33.4]} 20... Rfc8
{[%clk 0:00:24.9]} 21. Nxd5 {[%clk 0:00:17.3]} 21... cxb3 {[%clk 0:00:21.6]} 22.
Ne7+ {[%clk 0:00:09.5]} 22... Qxe7 {[%clk 0:00:19.9]} 23. Bxe7 {[%clk
0:00:08.6]} 23... bxc2 {[%clk 0:00:11.6]} 24. Rd8+ {[%clk 0:00:06.8]} 24... Rxd8
{[%clk 0:00:11.5]} 25. Bxd8 {[%clk 0:00:07.7]} 25... Rb1+ {[%clk 0:00:10]} 26.
Kxc2 {[%clk 0:00:08.1]} 26... Rxe1 {[%clk 0:00:09.9]} 27. Qc3 {[%clk 0:00:07.7]}
27... Bf5+ {[%clk 0:00:09.4]} 28. Kd2 {[%clk 0:00:06.5]} 28... Re8 {[%clk
0:00:09.8]} 29. Qc7 {[%clk 0:00:06.3]} 29... Be6 {[%clk 0:00:08.1]} 30. f3
{[%clk 0:00:04.6]} 30... g6 {[%clk 0:00:06.8]} 31. a4 {[%clk 0:00:04]} 31... Ng7
{[%clk 0:00:07]} 32. Bf6 {[%clk 0:00:03.7]} 32... Nf5 {[%clk 0:00:06.8]} 33.
Qxa7 {[%clk 0:00:03.6]} 33... h5 {[%clk 0:00:06.4]} 34. a5 {[%clk 0:00:03.7]}
34... Rc8 {[%clk 0:00:05.7]} 35. a6 {[%clk 0:00:03.7]} 35... Nd6 {[%clk
0:00:06]} 36. Ke1 {[%clk 0:00:01.8]} 36... Nc4 {[%clk 0:00:06.3]} 37. Kf2 {[%clk
0:00:01.9]} 37... Re8 {[%clk 0:00:07.2]} 38. Kg1 {[%clk 0:00:02.3]} 38... Bf5
{[%clk 0:00:07.7]} 39. Qc7 {[%clk 0:00:02.7]} 39... Re1+ {[%clk 0:00:07.6]} 40.
Kh2 {[%clk 0:00:03.3]} 40... Nd2 {[%clk 0:00:08.2]} 41. a7 {[%clk 0:00:03.9]}
41... Re2 {[%clk 0:00:08.2]} 42. a8=Q+ {[%clk 0:00:04.1]} 42... Kh7 {[%clk
0:00:09.1]} 43. Qa6 {[%clk 0:00:04.2]} 43... Nf1+ {[%clk 0:00:08.3]} 44. Kg1
{[%clk 0:00:04.3]} 44... Ng3 {[%clk 0:00:08.6]} 45. Qxf7+ {[%clk 0:00:04.8]} 1-0